fUSD/lending_fUSD_20240220
["ID","MTS","AMOUNT","RATE_DAILY","PERIOD"]
[314543816,1708414248773,-500.0,0.00036164,2]
[314543817,1708414248782,-1212.64,0.00036164,2]
[314543818,1708414248791,-500.0,0.00036164,2]
[314543819,1708414248801,-661.34,0.00036164,2]
[314543820,1708414248810,-705.29,0.00036164,2]
[314543821,1708414248820,-1024.07,0.00036164,2]
[314543822,1708414248829,-500.0,0.00036164,2]
[314543823,1708414248839,-666.3,0.00036164,2]
[314543824,1708414248849,-500.0,0.00036164,2]
[314543825,1708414248858,-586.04,0.00036164,2]
[314543826,1708414248868,-770.51,0.00036164,2]
[314543827,1708414248879,-500.0,0.00036164,2]
[314543828,1708414248888,-500.0,0.00036164,2]
[314543829,1708414248900,-500.0,0.00036164,2]
[314543830,1708414248909,-5521.52,0.00036164,2]
[314543831,1708414248919,-509.79,0.00036164,2]
[314543832,1708414248928,-800.82,0.00036164,2]
[314543833,1708414248937,-500.0,0.00036164,2]
[314543834,1708414248946,-1524.0,0.00036164,2]
[314543835,1708414248955,-500.0,0.00036164,2]
[314543836,1708414248965,-893.72,0.00036164,2]
[314543837,1708414248974,-500.0,0.00036164,2]
[314543838,1708414248984,-1929.44,0.00036164,2]
[314543839,1708414248993,-500.0,0.00036164,2]
[314543840,1708414249058,-500.0,0.00036164,2]
[314543841,1708414249069,-500.0,0.00036164,2]
[314543842,1708414249078,-500.0,0.00036164,2]
[314543843,1708414249088,-1120.0,0.00036164,2]
[314543844,1708414249097,-500.0,0.00036164,2]
[314543845,1708414249108,-500.0,0.00036164,2]
[314543846,1708414249118,-1070.01,0.00036164,2]
[314543847,1708414249127,-500.0,0.00036164,2]
[314543848,1708414249138,-1089.9,0.00036164,2]
[314543849,1708414249147,-673.98,0.00036164,2]
[314543850,1708414249156,-500.0,0.00036164,2]
[314543851,1708414249165,-500.0,0.00036164,2]
[314543852,1708414249174,-500.0,0.00036164,2]
[314543853,1708414249184,-642.91,0.00036164,2]
[314543854,1708414249193,-883.65,0.00036164,2]
[314543855,1708414249202,-500.0,0.00036164,2]
[314543856,1708414249212,-564.66597112,0.00036164,2]
[314543857,1708414249221,-500.0,0.00036164,2]
[314543858,1708414249229,-500.0,0.00036164,2]
[314543859,1708414249240,-603.44,0.00036164,2]
[314543860,1708414249248,-500.0,0.00036164,2]
[314543861,1708414249258,-500.0,0.00036164,2]
[314543862,1708414249267,-500.0,0.00036164,2]
[314543863,1708414249276,-500.0,0.00036164,2]
[314543864,1708414249285,-500.0,0.00036164,2]
[314543865,1708414249295,-512.74,0.00036164,2]
[314543866,1708414249304,-500.0,0.00036164,2]
[314543867,1708414249313,-632.37,0.00036164,2]
[314543868,1708414249322,-1662.68,0.00036164,2]
[314543869,1708414249331,-1216.0,0.00036164,2]
[314543870,1708414249340,-2122.45,0.00036164,2]
[314543871,1708414249350,-500.0,0.00036164,2]
[314543872,1708414249358,-155.0,0.0003617,2]
[314543873,1708414249367,-2927.22237371,0.00036236,9]
[314543874,1708414249376,-154.41764699,0.00036256,2]
[314543875,1708414249387,-767.15971876,0.0003629,2]
[314543876,1708414249396,-220.08355225,0.0003629,2]
[314543877,1708414249406,-486.38163566,0.0003629,2]
[314543878,1708414249415,-834.27054381,0.0003629,2]
[314543879,1708414249424,-2039.90088483,0.0003629,2]
[314543880,1708414249435,-2927.22237371,0.00036344,9]
[314543881,1708414249447,-150.0,0.00036365,2]
[314543882,1708414249457,-163.08,0.00036382,2]
[314543883,1708414249466,-26362.80419636,0.00036389,2]
[314543884,1708414249475,-26362.80419632,0.00036389,2]
[314543885,1708414249484,-26362.80419632,0.00036389,2]
[314543886,1708414249496,-26362.80419632,0.00036389,2]
[314543887,1708414249505,-26362.80419632,0.00036389,2]
[314543888,1708414249515,-26362.80419632,0.00036389,2]
[314543889,1708414249525,-26362.80419632,0.00036389,2]
[314543890,1708414249534,-26362.80419632,0.00036389,2]
[314543891,1708414249543,-300.0,0.00036422,2]
[314543892,1708414249552,-500.0,0.00036438,2]
[314543893,1708414249562,-500.0,0.00036438,2]
[314543894,1708414249571,-581.98344837,0.00036438,2]
[314543895,1708414249580,-500.0,0.00036438,2]
[314543896,1708414249589,-500.0,0.00036438,2]
[314543897,1708414249598,-500.0,0.00036438,2]
[314543898,1708414249607,-500.0,0.00036438,2]
[314543899,1708414249617,-500.0,0.00036438,2]
[314543900,1708414249626,-500.0,0.00036438,2]
[314543901,1708414249635,-500.0,0.00036438,2]
[314543902,1708414249644,-599.69921025,0.00036438,2]
[314543903,1708414249653,-500.0,0.00036438,2]
[314543904,1708414249662,-500.0,0.00036438,2]
[314543905,1708414249671,-500.0,0.00036438,2]
[314543906,1708414249680,-500.0,0.00036438,2]
[314543907,1708414249689,-500.0,0.00036438,2]
[314543908,1708414249698,-500.0,0.00036438,2]
[314543909,1708414249707,-500.0,0.00036438,2]
[314543910,1708414249716,-535.52470778,0.00036438,2]
[314543911,1708414249725,-500.0,0.00036438,2]
[314543912,1708414249734,-298.03317277,0.00036438,2]
[314543913,1708414249743,-500.0,0.00036438,2]
[314543914,1708414249752,-531.79816899,0.00036438,2]
[314543915,1708414249761,-500.0,0.00036438,2]
[314543916,1708414249770,-500.0,0.00036438,2]
[314543917,1708414249779,-500.0,0.00036438,2]
[314543918,1708414249788,-898.59,0.00036438,2]
[314543919,1708414249797,-500.0,0.00036438,2]
[314543920,1708414249805,-500.0,0.00036438,2]
[314543921,1708414249814,-500.0,0.00036438,2]
[314543922,1708414249823,-500.0,0.00036438,2]
[314543923,1708414249832,-500.0,0.00036438,2]
[314543924,1708414249841,-500.0,0.00036438,2]
[314543925,1708414249850,-500.0,0.00036438,2]
[314543926,1708414249859,-500.0,0.00036438,2]
[314543927,1708414249867,-500.0,0.00036438,2]
[314543928,1708414249876,-396.12196876,0.00036438,2]
[314543929,1708414249885,-500.0,0.00036438,2]
[314543930,1708414249894,-500.0,0.00036438,2]
[314543931,1708414249903,-603.39905913,0.00036438,2]
[314543932,1708414249912,-500.0,0.00036438,2]
[314543933,1708414249921,-573.07222173,0.00036438,2]
[314543934,1708414249930,-500.0,0.00036438,2]
[314543935,1708414249939,-500.0,0.00036438,2]
[314543936,1708414249948,-500.0,0.00036438,2]
[314543937,1708414249957,-500.0,0.00036438,2]
[314543938,1708414249966,-533.88902037,0.00036438,2]
[314543939,1708414249975,-500.0,0.00036438,2]
[314543940,1708414249985,-500.0,0.00036438,2]
[314543941,1708414249995,-500.0,0.00036438,2]
[314543942,1708414250004,-500.0,0.00036438,2]
[314543943,1708414250013,-500.0,0.00036438,2]
[314543944,1708414250022,-500.0,0.00036438,2]
[314543945,1708414250032,-500.0,0.00036438,2]
[314543946,1708414250041,-500.0,0.00036438,2]
[314543947,1708414250050,-500.0,0.00036438,2]
[314543948,1708414250059,-439.55644813,0.00036438,2]
[314543949,1708414250069,-500.0,0.00036438,2]
[314543950,1708414250079,-500.0,0.00036438,2]
[314543951,1708414250088,-500.0,0.00036438,2]
[314543952,1708414250098,-500.0,0.00036438,2]
[314543953,1708414250107,-500.0,0.00036438,2]
[314543954,1708414250116,-500.0,0.00036438,2]
[314543955,1708414250126,-500.0,0.00036438,2]
[314543956,1708414250135,-500.0,0.00036438,2]
[314543957,1708414250144,-500.0,0.00036438,2]
[314543958,1708414250153,-500.0,0.00036438,2]
[314543959,1708414250162,-500.0,0.00036438,2]
[314543960,1708414250171,-500.0,0.00036438,2]
[314543961,1708414250180,-500.0,0.00036438,2]
[314543962,1708414250190,-500.0,0.00036438,2]
[314543963,1708414250199,-500.0,0.00036438,2]
[314543964,1708414250208,-500.0,0.00036438,2]
[314543965,1708414250217,-500.0,0.00036438,2]
[314543966,1708414250226,-587.89453432,0.00036438,2]
[314543967,1708414250235,-491.14781034,0.00036438,2]
[314543968,1708414250246,-500.0,0.00036438,2]
[314543969,1708414250256,-500.0,0.00036438,2]
[314543970,1708414250265,-500.0,0.00036438,2]
[314543971,1708414250275,-500.0,0.00036438,2]
[314543972,1708414250285,-150.0,0.00036438,2]
[314543973,1708414250293,-500.0,0.00036438,2]
[314543974,1708414250302,-500.0,0.00036438,2]
[314543975,1708414250311,-500.0,0.00036438,2]
[314543976,1708414250319,-500.0,0.00036438,2]
[314543977,1708414250329,-500.0,0.00036438,2]
[314543978,1708414250338,-500.0,0.00036438,2]
[314543979,1708414250347,-500.0,0.00036438,2]
[314543980,1708414250356,-504.96,0.00036438,2]
[314543981,1708414250365,-500.0,0.00036438,2]
[314543982,1708414250375,-500.0,0.00036438,2]
[314543983,1708414250384,-500.0,0.00036438,2]
[314543984,1708414250393,-500.0,0.00036438,2]
[314543985,1708414250402,-500.0,0.00036438,2]
[314543986,1708414250412,-272.01974997,0.00036438,2]
[314543987,1708414250421,-500.0,0.00036438,2]
[314543988,1708414250431,-500.0,0.00036438,2]
[314543989,1708414250444,-500.0,0.00036438,2]
[314543990,1708414250452,-500.0,0.00036438,2]
[314543991,1708414250462,-500.0,0.00036438,2]
[314543992,1708414250471,-500.0,0.00036438,2]
[314543993,1708414250481,-500.0,0.00036438,2]
[314543994,1708414250491,-500.0,0.00036438,2]
[314543995,1708414250501,-500.0,0.00036438,2]
[314543996,1708414250510,-500.0,0.00036438,2]
[314543997,1708414250521,-500.0,0.00036438,2]
[314543998,1708414250530,-579.04693606,0.00036438,2]
[314543999,1708414250540,-500.0,0.00036438,2]
[314544000,1708414250550,-500.0,0.00036438,2]
[314544001,1708414250559,-500.0,0.00036438,2]
[314544002,1708414250569,-535.02,0.00036438,2]
[314544003,1708414250578,-500.0,0.00036438,2]
[314544004,1708414250588,-500.0,0.00036438,2]
[314544005,1708414250597,-500.0,0.00036438,2]
[314544006,1708414250607,-500.0,0.00036438,2]
[314544007,1708414250617,-557.87807358,0.00036438,2]
[314544008,1708414250626,-500.0,0.00036438,2]
[314544009,1708414250635,-500.0,0.00036438,2]
[314544010,1708414250644,-500.0,0.00036438,2]
[314544011,1708414250653,-500.0,0.00036438,2]
[314544012,1708414250662,-500.0,0.00036438,2]
[314544013,1708414250671,-861.99,0.00036438,2]
[314544014,1708414250681,-1993.68,0.00036438,2]
[314544015,1708414250691,-500.0,0.00036438,2]
[314544016,1708414250700,-500.0,0.00036438,2]
[314544017,1708414250710,-500.0,0.00036438,2]
[314544018,1708414250719,-500.0,0.00036438,2]
[314544019,1708414250728,-500.0,0.00036438,2]
[314544020,1708414250737,-763.94,0.00036438,2]
[314544021,1708414250748,-545.95,0.00036438,2]
[314544022,1708414250757,-987.27,0.00036438,2]
[314544023,1708414250766,-783.55,0.00036438,2]
[314544024,1708414250776,-776.81,0.00036438,2]
[314544025,1708414250785,-500.0,0.00036438,2]
[314544026,1708414250794,-500.0,0.00036438,2]
[314544027,1708414250803,-874.57,0.00036438,2]
[314544028,1708414250813,-1054.77,0.00036438,2]
[314544029,1708414250822,-500.0,0.00036438,2]
[314544030,1708414250832,-624.15,0.00036438,2]
[314544031,1708414250841,-535.26,0.00036438,2]
[314544032,1708414250851,-500.0,0.00036438,2]
[314544033,1708414250860,-500.0,0.00036438,2]
[314544034,1708414250870,-650.78,0.00036438,2]
[314544035,1708414250879,-500.0,0.00036438,2]
[314544036,1708414250888,-568.24,0.00036438,2]
[314544037,1708414250897,-500.0,0.00036438,2]
[314544038,1708414250907,-709.19,0.00036438,2]
[314544039,1708414250916,-2156.42,0.00036438,2]
[314544040,1708414250926,-500.0,0.00036438,2]
[314544041,1708414250935,-2247.45,0.00036438,2]
[314544042,1708414250945,-1476.72,0.00036438,2]
[314544043,1708414250954,-500.0,0.00036438,2]
[314544044,1708414250964,-766.73,0.00036438,2]
[314544045,1708414250973,-500.0,0.00036438,2]
[314544046,1708414250982,-1458.2,0.00036438,2]
[314544047,1708414250992,-1103.44,0.00036438,2]
[314544048,1708414251002,-2849.4,0.00036438,2]
[314544049,1708414251011,-1265.79,0.00036438,2]
[314544050,1708414251020,-853.65,0.00036438,2]
[314544051,1708414251030,-593.25,0.00036438,2]
[314544052,1708414251039,-13765.84,0.00036438,2]
[314544053,1708414251048,-500.0,0.00036438,2]
[314544054,1708414251057,-500.0,0.00036438,2]
[314544055,1708414251066,-500.0,0.00036438,2]
[314544056,1708414251075,-867.6,0.00036438,2]
[314544057,1708414251085,-1121.73,0.00036438,2]
[314544058,1708414251094,-608.73178464,0.00036438,2]
[314544059,1708414251103,-991.95,0.00036438,2]
[314544060,1708414251113,-852.32,0.00036438,2]
[314544061,1708414251122,-630.78,0.00036438,2]
[314544062,1708414251131,-502.53,0.00036438,2]
[314544063,1708414251141,-500.0,0.00036438,2]
[314544064,1708414251150,-500.0,0.00036438,2]
[314544065,1708414251160,-500.0,0.00036438,2]
[314544066,1708414251169,-925.12,0.00036438,2]
[314544067,1708414251178,-943.13,0.00036438,2]
[314544068,1708414251188,-533.9,0.00036438,2]
[314544069,1708414251198,-500.0,0.00036438,2]
[314544070,1708414251209,-676.43,0.00036438,2]
[314544071,1708414251218,-500.0,0.00036438,2]
[314544072,1708414251227,-947.56,0.00036438,2]
[314544073,1708414251238,-500.0,0.00036438,2]
[314544074,1708414251248,-1111.91,0.00036438,2]
[314544075,1708414251258,-500.0,0.00036438,2]
[314544076,1708414251268,-500.0,0.00036438,2]
[314544077,1708414251277,-500.0,0.00036438,2]
[314544078,1708414251286,-5469.99,0.00036438,2]
[314544079,1708414251295,-1798.98,0.00036438,2]
[314544080,1708414251305,-2147.88,0.00036438,2]
[314544081,1708414251315,-567.80602149,0.00036438,2]
[314544082,1708414251324,-695.38,0.00036438,2]
[314544083,1708414251333,-623.89,0.00036438,2]
[314544084,1708414251343,-500.0,0.00036438,2]
[314544085,1708414251353,-500.0,0.00036438,2]
[314544086,1708414251363,-734.64,0.00036438,2]
[314544087,1708414251372,-500.0,0.00036438,2]
[314544088,1708414251382,-538.14,0.00036438,2]
[314544089,1708414251391,-500.0,0.00036438,2]
[314544090,1708414251401,-561.68,0.00036438,2]
[314544091,1708414251410,-634.06,0.00036438,2]
[314544092,1708414251419,-500.0,0.00036438,2]
[314544093,1708414251430,-2824.81,0.00036438,2]
[314544094,1708414251440,-1005.04,0.00036438,2]
[314544095,1708414251451,-500.0,0.00036438,2]
[314544096,1708414251462,-500.0,0.00036438,2]
[314544097,1708414251471,-1772.53,0.00036438,2]
[314544098,1708414251482,-500.0,0.00036438,2]
[314544099,1708414251492,-634.55,0.00036438,2]
[314544100,1708414251502,-554.38,0.00036438,2]
[314544101,1708414251511,-284.60737959,0.00036438,2]
[314544102,1708414251521,-4474.25,0.00036438,2]
[314544103,1708414251531,-621.98,0.00036438,2]
[314544104,1708414251540,-500.0,0.00036438,2]
[314544105,1708414251549,-831.9,0.00036438,2]
[314544106,1708414251559,-500.0,0.00036438,2]
[314544107,1708414251568,-536.72,0.00036438,2]
[314544108,1708414251577,-500.0,0.00036438,2]
[314544109,1708414251587,-500.0,0.00036438,2]
[314544110,1708414251596,-1946.15,0.00036438,2]
[314544111,1708414251606,-500.0,0.00036438,2]
[314544112,1708414251615,-1272.36,0.00036438,2]
[314544113,1708414251624,-2232.84,0.00036438,2]
[314544114,1708414251633,-500.0,0.00036438,2]
[314544115,1708414251643,-2036.23,0.00036438,2]
[314544116,1708414251652,-627.84,0.00036438,2]
[314544117,1708414251661,-500.0,0.00036438,2]
[314544118,1708414251671,-500.0,0.00036438,2]
[314544119,1708414251680,-709.64,0.00036438,2]
[314544120,1708414251690,-697.32,0.00036438,2]
[314544121,1708414251699,-500.0,0.00036438,2]
[314544122,1708414251708,-725.4,0.00036438,2]
[314544123,1708414251717,-500.0,0.00036438,2]
[314544124,1708414251727,-500.0,0.00036438,2]
[314544125,1708414251736,-543.39,0.00036438,2]
[314544126,1708414251745,-585.21,0.00036438,2]
[314544127,1708414251755,-500.0,0.00036438,2]
[314544128,1708414251764,-1989.5,0.00036438,2]
[314544129,1708414251773,-1171.13,0.00036438,2]
[314544130,1708414251783,-649.29322276,0.00036438,2]
[314544131,1708414251793,-633.14,0.00036438,2]
[314544132,1708414251803,-500.0,0.00036438,2]
[314544133,1708414251813,-891.99,0.00036438,2]
[314544134,1708414251823,-500.0,0.00036438,2]
[314544135,1708414251834,-3307.0,0.00036438,2]
[314544136,1708414251844,-1042.34,0.00036438,2]
[314544137,1708414251854,-749.4,0.00036438,2]
[314544138,1708414251864,-397.06909302,0.00036438,2]
[314544139,1708414251875,-500.0,0.00036438,2]
[314544140,1708414251886,-500.0,0.00036438,2]
[314544141,1708414251896,-3720.96,0.00036438,2]
[314544142,1708414251907,-1325.65,0.00036438,2]
[314544143,1708414251916,-734.53,0.00036438,2]
[314544144,1708414251927,-958.69,0.00036438,2]
[314544145,1708414251936,-694.3,0.00036438,2]
[314544146,1708414251946,-500.0,0.00036438,2]
[314544147,1708414251957,-529.25,0.00036438,2]
[314544148,1708414251966,-500.0,0.00036438,2]
[314544149,1708414251975,-983.79,0.00036438,2]
[314544150,1708414251985,-314.58819879,0.00036438,2]
[314544151,1708414251996,-650.18,0.00036438,2]
[314544152,1708414252005,-500.0,0.00036438,2]
[314544153,1708414252015,-1212.64,0.00036438,2]
[314544154,1708414252025,-500.0,0.00036438,2]
[314544155,1708414252035,-661.34,0.00036438,2]
[314544156,1708414252045,-705.29,0.00036438,2]
[314544157,1708414252054,-1024.07,0.00036438,2]
[314544158,1708414252064,-500.0,0.00036438,2]
[314544159,1708414252074,-666.3,0.00036438,2]
[314544160,1708414252083,-500.0,0.00036438,2]
[314544161,1708414252093,-586.04,0.00036438,2]
[314544162,1708414252102,-770.51,0.00036438,2]
[314544163,1708414252111,-500.0,0.00036438,2]
[314544164,1708414252120,-500.0,0.00036438,2]
[314544165,1708414252129,-421.1,0.00036438,2]
[314544166,1708414252139,-5521.52,0.00036438,2]
[314544167,1708414252148,-509.79,0.00036438,2]
[314544168,1708414252158,-800.82,0.00036438,2]
[314544169,1708414252167,-500.0,0.00036438,2]
[314544170,1708414252176,-1524.0,0.00036438,2]
[314544171,1708414252186,-893.72,0.00036438,2]
[314544172,1708414252195,-500.0,0.00036438,2]
[314544173,1708414252205,-1929.44,0.00036438,2]
[314544174,1708414252214,-500.0,0.00036438,2]
[314544175,1708414252223,-500.0,0.00036438,2]
[314544176,1708414252233,-500.0,0.00036438,2]
[314544177,1708414252243,-500.0,0.00036438,2]
[314544178,1708414252253,-1120.0,0.00036438,2]
[314544179,1708414252263,-500.0,0.00036438,2]
[314544180,1708414252273,-500.0,0.00036438,2]
[314544181,1708414252283,-1070.01,0.00036438,2]
[314544182,1708414252293,-500.0,0.00036438,2]
[314544183,1708414252303,-1089.9,0.00036438,2]
[314544184,1708414252313,-673.98,0.00036438,2]
[314544185,1708414252323,-500.0,0.00036438,2]
[314544186,1708414252332,-500.0,0.00036438,2]
[314544187,1708414252342,-500.19301878,0.00036438,2]
[314544188,1708414252351,-642.91,0.00036438,2]
[314544189,1708414252362,-883.65,0.00036438,2]
[314544190,1708414252371,-500.0,0.00036438,2]
[314544191,1708414252381,-513.54039986,0.00036438,2]
[314544192,1708414252391,-500.0,0.00036438,2]
[314544193,1708414252401,-603.44,0.00036438,2]
[314544194,1708414252412,-500.0,0.00036438,2]
[314544195,1708414252421,-500.0,0.00036438,2]
[314544196,1708414252432,-500.0,0.00036438,2]
[314544197,1708414252445,-512.74,0.00036438,2]
[314544198,1708414252455,-500.0,0.00036438,2]
[314544199,1708414252465,-1662.68,0.00036438,2]
[314544200,1708414252475,-632.37,0.00036438,2]
[314544201,1708414252486,-1216.0,0.00036438,2]
[314544202,1708414252497,-2122.45,0.00036438,2]
[314544203,1708414252506,-500.0,0.00036438,2]
[314544204,1708414252516,-177.58,0.00036444,2]
[314544205,1708414252526,-150.0,0.00036446,2]
[314544206,1708414252536,-2927.22237371,0.00036451,9]
[314544207,1708414252545,-1000.0,0.000365,2]
[314544208,1708414252555,-2000.0,0.00036506,2]
[314544209,1708414252565,-200.0,0.00036506,2]
[314544210,1708414252574,-2000.0,0.00036506,2]
[314544211,1708414252583,-200.0,0.00036506,2]
[314544212,1708414252593,-26362.80419632,0.00036509,2]
[314544213,1708414252603,-150.0,0.00036509,2]
[314544214,1708414252613,-300.0,0.00036552,2]
[314544215,1708414252623,-2927.22237371,0.00036558,9]
[314544216,1708414252632,-300.0,0.0003657,2]
[314544217,1708414252642,-164.12937496,0.0003661,2]
[314544218,1708414252651,-300.0,0.00036625,2]
[314544219,1708414252660,-1543.08324433,0.00036661,2]
[314544220,1708414252670,-2927.22237371,0.00036665,9]
[314544221,1708414252679,-1500.0,0.00036673,2]
[314544222,1708414252689,-232.81847671,0.0003668,2]
[314544223,1708414252698,-150.0,0.00036683,2]
[314544224,1708414252707,-150.0,0.00036689,2]
[314544225,1708414252716,-150.0,0.00036696,2]
[314544226,1708414252726,-309.2,0.000367,3]
[314544227,1708414252735,-300.0,0.00036701,2]
[314544228,1708414252746,-150.0,0.00036703,2]
[314544229,1708414252755,-1500.0,0.00036708,2]
[314544230,1708414252765,-500.0,0.00036712,2]
[314544231,1708414252775,-500.0,0.00036712,2]
[314544232,1708414252785,-500.0,0.00036712,2]
[314544233,1708414252794,-500.0,0.00036712,2]
[314544234,1708414252804,-500.0,0.00036712,2]
[314544235,1708414252813,-500.0,0.00036712,2]
[314544236,1708414252823,-500.0,0.00036712,2]
[314544237,1708414252833,-500.0,0.00036712,2]
[314544238,1708414252842,-500.0,0.00036712,2]
[314544239,1708414252851,-500.0,0.00036712,2]
[314544240,1708414252861,-500.0,0.00036712,2]
[314544241,1708414252870,-500.0,0.00036712,2]
[314544242,1708414252880,-500.0,0.00036712,2]
[314544243,1708414252889,-570.92,0.00036712,2]
[314544244,1708414252899,-482.52894184,0.00036712,2]
[314544245,1708414252908,-500.0,0.00036712,2]
[314544246,1708414252918,-500.0,0.00036712,2]
[314544247,1708414252927,-500.0,0.00036712,2]
[314544248,1708414252937,-563.23769103,0.00036712,2]
[314544249,1708414252946,-898.59,0.00036712,2]
[314544250,1708414252956,-500.0,0.00036712,2]
[314544251,1708414252965,-500.0,0.00036712,2]
[314544252,1708414252975,-500.0,0.00036712,2]
[314544253,1708414252985,-500.0,0.00036712,2]
[314544254,1708414252994,-500.0,0.00036712,2]
[314544255,1708414253004,-329.64268965,0.00036712,2]
[314544256,1708414253013,-500.0,0.00036712,2]
[314544257,1708414253023,-500.0,0.00036712,2]
[314544258,1708414253032,-500.0,0.00036712,2]
[314544259,1708414253042,-500.0,0.00036712,2]
[314544260,1708414253051,-500.0,0.00036712,2]
[314544261,1708414253061,-500.0,0.00036712,2]
[314544262,1708414253071,-500.0,0.00036712,2]
[314544263,1708414253081,-500.0,0.00036712,2]
[314544264,1708414253091,-368.40616052,0.00036712,2]
[314544265,1708414253100,-500.0,0.00036712,2]
[314544266,1708414253110,-500.0,0.00036712,2]
[314544267,1708414253119,-500.0,0.00036712,2]
[314544268,1708414253128,-500.0,0.00036712,2]
[314544269,1708414253138,-500.0,0.00036712,2]
[314544270,1708414253147,-500.0,0.00036712,2]
[314544271,1708414253157,-534.5686951,0.00036712,2]
[314544272,1708414253167,-433.26585548,0.00036712,2]
[314544273,1708414253176,-500.0,0.00036712,2]
[314544274,1708414253186,-500.0,0.00036712,2]
[314544275,1708414253195,-500.0,0.00036712,2]
[314544276,1708414253204,-500.0,0.00036712,2]
[314544277,1708414253214,-500.0,0.00036712,2]
[314544278,1708414253223,-400.25066433,0.00036712,2]
[314544279,1708414253233,-500.0,0.00036712,2]
[314544280,1708414253242,-500.0,0.00036712,2]
[314544281,1708414253252,-500.0,0.00036712,2]
[314544282,1708414253261,-500.0,0.00036712,2]
[314544283,1708414253271,-500.0,0.00036712,2]
[314544284,1708414253280,-500.0,0.00036712,2]
[314544285,1708414253290,-500.0,0.00036712,2]
[314544286,1708414253299,-387.86981199,0.00036712,2]
[314544287,1708414253309,-221.76332946,0.00036712,2]
[314544288,1708414253318,-394.45647121,0.00036712,2]
[314544289,1708414253328,-500.0,0.00036712,2]
[314544290,1708414253337,-500.0,0.00036712,2]
[314544291,1708414253347,-500.0,0.00036712,2]
[314544292,1708414253357,-500.0,0.00036712,2]
[314544293,1708414253366,-500.0,0.00036712,2]
[314544294,1708414253375,-500.0,0.00036712,2]
[314544295,1708414253385,-308.84193752,0.00036712,2]
[314544296,1708414253395,-150.0,0.00036712,2]
[314544297,1708414253404,-500.0,0.00036712,2]
[314544298,1708414253414,-500.0,0.00036712,2]
[314544299,1708414253423,-500.0,0.00036712,2]
[314544300,1708414253438,-500.0,0.00036712,2]
[314544301,1708414253448,-500.0,0.00036712,2]
[314544302,1708414253458,-500.0,0.00036712,2]
[314544303,1708414253467,-275.57944096,0.00036712,2]
[314544304,1708414253478,-504.96,0.00036712,2]
[314544305,1708414253488,-500.0,0.00036712,2]
[314544306,1708414253498,-500.0,0.00036712,2]
[314544307,1708414253508,-548.23759451,0.00036712,2]
[314544308,1708414253518,-500.0,0.00036712,2]
[314544309,1708414253530,-500.0,0.00036712,2]
[314544310,1708414253539,-500.0,0.00036712,2]
[314544311,1708414253549,-500.0,0.00036712,2]
[314544312,1708414253559,-500.0,0.00036712,2]
[314544313,1708414253568,-500.0,0.00036712,2]
[314544314,1708414253578,-569.75604213,0.00036712,2]
[314544315,1708414253588,-500.0,0.00036712,2]